bitfinex/quotes_BTCUSD_20250830
["timestamp","ask_amount","ask_price","bid_price","bid_amount"]
[1756577723866,4.34889836,108960.0,108950.0,0.16463258]
[1756577724496,4.32528423,108960.0,108950.0,0.16463258]
[1756577724665,4.34889153,108960.0,108950.0,0.01047258]
[1756577724871,4.34889153,108960.0,108950.0,0.16463258]
[1756577725015,4.34889153,108960.0,108950.0,0.01047258]
[1756577725465,4.34889153,108960.0,108950.0,0.16463258]
[1756577727500,4.34889153,108960.0,108950.0,0.01047258]
[1756577727696,4.34889153,108960.0,108950.0,0.16463258]
[1756577727952,4.34889153,108960.0,108950.0,0.01047258]
[1756577730151,4.50305153,108960.0,108950.0,0.01047258]
[1756577730580,4.84496238,108960.0,108950.0,1e-08]
[1756577730799,4.8725751,108960.0,108950.0,1e-08]
[1756577731764,4.5280097,108960.0,108950.0,1e-08]
[1756577732374,4.8755751,108960.0,108950.0,1e-08]
[1756577732581,4.5310097,108960.0,108950.0,1e-08]
[1756577732760,4.54537728,108960.0,108950.0,1e-08]
[1756577733140,4.88994268,108960.0,108950.0,1e-08]
[1756577733348,4.93994268,108960.0,108950.0,1e-08]
[1756577734327,4.93990813,108960.0,108950.0,1e-08]
[1756577734526,5.62903893,108960.0,108950.0,1e-08]
[1756577736566,5.65381568,108960.0,108950.0,1e-08]
[1756577740555,5.49965568,108960.0,108950.0,1e-08]
[1756577740949,4.62011948,108960.0,108950.0,1e-08]
[1756577741145,4.60297428,108960.0,108950.0,1e-08]
[1756577741356,4.62011443,108960.0,108950.0,1e-08]
[1756577742811,4.62011443,108960.0,108950.0,0.00200001]
[1756577742812,4.47617722,108960.0,108950.0,0.00200001]
[1756577743306,4.47921722,108960.0,108950.0,0.00200001]
[1756577743514,4.47921722,108960.0,108950.0,1e-08]
[1756577743718,4.53178811,108960.0,108950.0,1e-08]
[1756577744488,4.56479916,108960.0,108950.0,1e-08]
[1756577744672,4.63595533,108960.0,108950.0,1e-08]
[1756577744814,4.65311627,108960.0,108950.0,1e-08]
[1756577748392,4.65312552,108960.0,108950.0,1e-08]
[1756577749521,4.97291417,108960.0,108950.0,1e-08]
[1756577749741,5.66204497,108960.0,108950.0,1e-08]
[1756577749952,5.67862321,108960.0,108950.0,1e-08]
[1756577750127,5.64997576,108960.0,108950.0,1e-08]
[1756577750469,5.83353576,108960.0,108950.0,1e-08]
[1756577750885,5.88353576,108960.0,108950.0,1e-08]
[1756577751090,0.5281864,108920.0,108910.0,0.1879143]
[1756577751294,0.62296767,108920.0,108910.0,0.1899143]
[1756577751510,0.65058039,108920.0,108910.0,0.1478743]
[1756577751710,0.67819439,108920.0,108910.0,0.1478743]
[1756577752000,0.67820212,108920.0,108910.0,0.1478743]
[1756577752228,0.68023212,108920.0,108910.0,0.00516]
[1756577752440,0.1928598,108900.0,108890.0,0.00316]
[1756577752648,0.18367159,108890.0,108880.0,0.22648]
[1756577752857,0.5454068,108890.0,108880.0,0.22648]
[1756577753067,0.5454068,108890.0,108880.0,0.23211676]
[1756577753257,0.2008414,108890.0,108880.0,0.23211676]
[1756577753544,0.54584343,108890.0,108880.0,0.23211676]
[1756577753751,0.57346243,108890.0,108880.0,0.23211676]
[1756577753962,0.57346243,108890.0,108880.0,0.23711676]
[1756577754167,0.57346243,108890.0,108880.0,0.24011676]
[1756577754314,0.62833168,108890.0,108880.0,0.24011676]
[1756577754517,0.58269938,108890.0,108880.0,0.24011676]
[1756577755118,0.58269938,108890.0,108880.0,0.23511676]
[1756577755333,0.56552957,108890.0,108880.0,0.24111676]
[1756577755532,0.58910882,108890.0,108880.0,0.24111676]
[1756577758457,0.58910882,108890.0,108880.0,0.23811676]
[1756577759516,0.58910882,108890.0,108880.0,0.24211676]
[1756577759699,0.58910882,108890.0,108880.0,0.24511676]
[1756577762444,0.24410679,108890.0,108880.0,0.24511676]
[1756577762646,0.58910882,108890.0,108880.0,0.24511676]
[1756577763110,0.23486984,108890.0,108880.0,0.52178523]
[1756577763317,0.24428293,108890.0,108880.0,0.52178523]
[1756577763502,0.58928496,108890.0,108880.0,0.52178523]
[1756577764922,0.58925555,108890.0,108880.0,0.33809677]
[1756577765327,0.05116857,108890.0,108880.0,0.52178523]
[1756577765530,0.23484016,108890.0,108880.0,0.52178523]
[1756577766336,0.57984219,108890.0,108880.0,0.33797677]
[1756577767285,0.57984219,108890.0,108880.0,0.18221677]
[1756577767492,0.57984219,108890.0,108880.0,0.33797677]
[1756577769640,0.57984219,108890.0,108880.0,0.18221677]
[1756577769844,0.57984219,108890.0,108880.0,0.33485677]
[1756577773213,0.23484016,108890.0,108880.0,0.33485677]
[1756577773521,0.57984219,108890.0,108880.0,0.33485677]
[1756577775162,0.5627153,108890.0,108880.0,0.33485677]
[1756577775342,0.5798589,108890.0,108880.0,0.33485677]
[1756577780225,0.5818489,108890.0,108880.0,0.33485677]
[1756577780434,0.5849189,108890.0,108880.0,0.33485677]
[1756577781346,0.5848848,108890.0,108880.0,0.33485677]
[1756577785959,0.58495507,108890.0,108880.0,0.33485677]
[1756577786451,0.58495584,108890.0,108880.0,0.33485677]
[1756577786618,0.58495594,108890.0,108880.0,0.33485677]
[1756577787419,0.5785094,108890.0,108880.0,0.33485677]
[1756577789842,0.5734494,108890.0,108880.0,0.51854523]
[1756577791268,0.22848147,108890.0,108880.0,0.36274523]
[1756577791464,0.5734494,108890.0,108880.0,0.33425677]
[1756577792736,0.5785094,108890.0,108880.0,0.33425677]
[1756577796650,0.57851422,108890.0,108880.0,0.33425677]
[1756577802025,0.57851422,108890.0,108880.0,0.51794523]
[1756577805086,0.57851422,108890.0,108880.0,0.33425677]
[1756577805492,0.57851422,108890.0,108880.0,0.51794523]
[1756577807862,0.57851425,108890.0,108880.0,0.51794523]
[1756577808058,0.23354632,108890.0,108880.0,0.51794523]
[1756577808285,0.57851425,108890.0,108880.0,0.51794523]
[1756577810006,0.04481473,108890.0,108880.0,0.54198405]
[1756577810206,0.04481461,108890.0,108880.0,0.54198405]
[1756577810637,0.027619,108890.0,108880.0,0.54198405]
[1756577811176,0.55036253,108900.0,108890.0,0.18367159]
[1756577811378,0.56755743,108900.0,108890.0,0.2786916]
[1756577811579,0.56964743,108900.0,108890.0,0.2786916]
[1756577811753,0.59726043,108900.0,108890.0,0.2786916]
[1756577812439,0.59726043,108900.0,108890.0,0.2806916]
[1756577812808,0.58263563,108900.0,108890.0,0.2806916]
[1756577813008,0.58263563,108900.0,108890.0,0.2836916]
[1756577813457,0.58785563,108900.0,108890.0,0.2836916]
[1756577814155,0.59689051,108900.0,108890.0,0.2836916]
[1756577814616,0.57970667,108900.0,108890.0,0.2836916]
[1756577815087,0.22951874,108900.0,108890.0,0.2836916]
[1756577815293,0.37258093,108900.0,108890.0,0.30463042]
[1756577815512,0.027613,108900.0,108890.0,0.30463042]
[1756577815720,0.37258093,108900.0,108890.0,0.30463042]
[1756577818599,0.37258093,108900.0,108890.0,0.45931042]
[1756577818816,0.027613,108900.0,108890.0,0.45931042]
[1756577819021,0.37258093,108900.0,108890.0,0.45931042]
[1756577820283,0.56145565,108900.0,108890.0,0.45923042]
[1756577821035,0.37780093,108900.0,108890.0,0.45923042]
[1756577823105,0.032833,108900.0,108890.0,0.45923042]
[1756577823249,0.37258093,108900.0,108890.0,0.45923042]
[1756577823717,0.027613,108900.0,108890.0,0.80729835]
[1756577823942,0.34809793,108910.0,108900.0,0.20459354]
[1756577824123,0.37257793,108910.0,108900.0,0.37025355]
[1756577824540,0.37570793,108910.0,108900.0,0.37025355]
[1756577824857,0.37779793,108910.0,108900.0,0.37025355]
[1756577825272,0.37779793,108910.0,108900.0,0.37125355]
[1756577825793,0.38721405,108910.0,108900.0,0.37125355]
[1756577826193,0.38721405,108910.0,108900.0,0.37325355]
[1756577826978,0.37779793,108910.0,108900.0,0.37325355]
[1756577827698,0.38693201,108910.0,108900.0,0.37325355]
[1756577831253,0.37779793,108910.0,108900.0,0.35231473]
[1756577832573,0.03283,108910.0,108900.0,0.35231473]
[1756577832817,0.37779793,108910.0,108900.0,0.35231473]
[1756577838826,0.37779793,108910.0,108900.0,0.72132148]
[1756577838827,0.02761,108910.0,108900.0,0.72132148]
[1756577839074,0.53171964,108920.0,108910.0,0.18363786]
[1756577839298,0.57861756,108920.0,108910.0,0.43101787]
[1756577839943,0.57861756,108920.0,108910.0,0.27661787]
[1756577840394,0.92358549,108920.0,108910.0,0.24738001]
[1756577840853,0.92358549,108920.0,108910.0,0.25038001]
[1756577841228,0.93287389,108920.0,108910.0,0.25038001]
[1756577841461,0.93287389,108920.0,108910.0,0.25238001]
[1756577843541,0.58790596,108920.0,108910.0,0.25238001]
[1756577844945,0.58790596,108920.0,108910.0,0.09798001]
[1756577845150,0.58790596,108920.0,108910.0,0.25238001]
[1756577848266,0.57073604,108920.0,108910.0,0.25238001]
[1756577848418,0.58792235,108920.0,108910.0,0.25238001]
[1756577851734,0.24295442,108920.0,108910.0,0.25238001]
[1756577851934,0.58792551,108920.0,108910.0,0.25238001]
[1756577852694,0.24295687,108920.0,108910.0,0.43802787]
[1756577852948,0.5847948,108920.0,108910.0,0.43802787]
[1756577853749,0.5879248,108920.0,108910.0,0.43802787]
[1756577854554,0.93289273,108920.0,108910.0,0.43802787]
[1756577857903,0.5879248,108920.0,108910.0,0.43802787]
[1756577858944,0.93290066,108920.0,108910.0,0.43802787]
[1756577860619,0.58793273,108920.0,108910.0,0.43802787]
[1756577860808,0.93290066,108920.0,108910.0,0.43802787]
[1756577864340,0.2429648,108920.0,108910.0,0.43802787]
[1756577864567,0.93290066,108920.0,108910.0,0.43802787]
[1756577865800,0.58793273,108920.0,108910.0,0.43802787]
[1756577866010,0.58793121,108920.0,108910.0,0.43802787]
[1756577867020,0.57864242,108920.0,108910.0,0.43802787]
[1756577867635,0.58802992,108920.0,108910.0,0.43802787]
[1756577868252,0.39502142,108920.0,108910.0,0.43802787]
[1756577868682,0.38977142,108920.0,108910.0,0.43802787]
[1756577868884,0.027608,108920.0,108910.0,0.46190669]
[1756577869089,0.53170207,108930.0,108920.0,0.183621]
[1756577869333,0.57862479,108930.0,108920.0,0.34724101]
[1756577869488,0.5786186,108930.0,108920.0,0.34939101]
[1756577869688,0.5786186,108930.0,108920.0,0.34724101]
[1756577870255,0.5786186,108930.0,108920.0,0.34771777]
[1756577870407,0.57861838,108930.0,108920.0,0.34771777]
[1756577870762,0.57861838,108930.0,108920.0,0.34871777]
[1756577871931,0.57861838,108930.0,108920.0,0.34971777]
[1756577872218,0.05004631,108930.0,108920.0,0.35186777]
[1756577872428,0.56142807,108930.0,108920.0,0.35186777]
[1756577872612,0.56142807,108930.0,108920.0,0.50403777]
[1756577879581,0.56142807,108930.0,108920.0,0.32041677]
[1756577880031,0.21646014,108930.0,108920.0,0.32041677]
[1756577880173,0.56142807,108930.0,108920.0,0.32041677]
[1756577880384,0.21646014,108930.0,108920.0,0.32041677]
[1756577880593,0.56142807,108930.0,108920.0,0.32041677]
[1756577881783,0.21646014,108930.0,108920.0,0.50618777]
[1756577881986,0.56142807,108930.0,108920.0,0.50618777]
[1756577883172,0.56142807,108930.0,108920.0,0.50403777]
[1756577887637,0.56142807,108930.0,108920.0,0.32041677]
[1756577889207,0.906396,108930.0,108920.0,0.16609677]
[1756577889463,0.906396,108930.0,108920.0,0.32267203]
[1756577889658,0.906396,108930.0,108920.0,0.32037677]
[1756577892151,0.906396,108930.0,108920.0,0.16609677]
[1756577892361,0.906396,108930.0,108920.0,0.32037677]
[1756577895744,0.906396,108930.0,108920.0,0.50399777]
[1756577896384,0.92358591,108930.0,108920.0,0.50399777]
[1756577897224,0.23365005,108930.0,108920.0,0.50399777]
[1756577897444,0.92358591,108930.0,108920.0,0.50399777]
[1756577900407,0.906396,108930.0,108920.0,0.50399777]
[1756577900558,0.92359795,108930.0,108920.0,0.50399777]
[1756577900954,0.92359798,108930.0,108920.0,0.50399777]
[1756577911033,0.906396,108930.0,108920.0,0.50399777]
[1756577911270,0.92359847,108930.0,108920.0,0.50399777]
[1756577917486,0.92359847,108930.0,108920.0,0.50600777]
[1756577920880,0.57863054,108930.0,108920.0,0.50600777]
[1756577921270,0.57550054,108930.0,108920.0,0.50600777]
[1756577921568,0.55829807,108930.0,108920.0,0.50600777]
[1756577921781,0.57550121,108930.0,108920.0,0.50600777]
[1756577923444,0.57338121,108930.0,108920.0,0.50600777]
[1756577924101,0.22841328,108930.0,108920.0,0.50600777]
[1756577924286,0.57338121,108930.0,108920.0,0.50600777]
[1756577924694,0.57870121,108930.0,108920.0,0.50600777]
[1756577927915,0.57550121,108930.0,108920.0,0.50600777]
[1756577928112,0.57338121,108930.0,108920.0,0.50600777]
[1756577928546,0.57550121,108930.0,108920.0,0.50600777]
[1756577928768,0.57870121,108930.0,108920.0,0.50600777]
[1756577930170,0.04480914,108930.0,108920.0,0.50600777]
[1756577930369,0.38977707,108930.0,108920.0,0.53004659]
[1756577930647,0.04480914,108930.0,108920.0,0.53004659]
[1756577930844,0.04480914,108930.0,108920.0,0.87501452]
[1756577931482,0.027606,108930.0,108920.0,0.87501452]
[1756577934958,0.34496793,108940.0,108930.0,0.18360414]
[1756577935192,0.04479844,108940.0,108930.0,0.43284415]
[1756577935396,0.38976637,108940.0,108930.0,0.43284415]
[1756577935982,0.04479844,108940.0,108930.0,0.27868415]
[1756577936162,0.04479844,108940.0,108930.0,0.43384415]
[1756577936395,0.027603,108940.0,108930.0,0.43384415]
[1756577937207,0.027603,108940.0,108930.0,0.43484415]
[1756577937736,0.027603,108940.0,108930.0,0.43354356]
[1756577939781,0.21119029,108940.0,108930.0,0.45448238]
[1756577940375,0.027603,108940.0,108930.0,0.45448238]
[1756577946211,0.54989318,108950.0,108940.0,0.18358729]
[1756577946428,0.59668802,108950.0,108940.0,0.2765673]
[1756577946649,0.59668802,108950.0,108940.0,0.3492673]
[1756577946863,0.04478484,108950.0,108940.0,0.3492673]
[1756577947070,0.55613937,108950.0,108940.0,0.3492673]
[1756577947273,0.55613937,108950.0,108940.0,0.5033873]
[1756577947473,0.37256893,108950.0,108940.0,0.5033873]
[1756577948730,0.21117144,108950.0,108940.0,0.5033873]
[1756577949368,0.027601,108950.0,108940.0,0.5033873]
[1756577949601,0.21117144,108950.0,108940.0,0.5033873]
[1756577950402,0.21616144,108950.0,108940.0,0.5033873]
[1756577950621,0.56112937,108950.0,108940.0,0.5033873]
[1756577950838,0.56112937,108950.0,108940.0,0.3492673]
[1756577951047,0.56112937,108950.0,108940.0,0.5033473]
[1756577951199,0.21616144,108950.0,108940.0,0.5033473]
[1756577953545,0.21616144,108950.0,108940.0,0.5012473]
[1756577954906,0.56112937,108950.0,108940.0,0.5012473]
[1756577956560,0.56112937,108950.0,108940.0,0.3471673]
[1756577956737,0.56112937,108950.0,108940.0,0.5012473]
[1756577957514,0.21616144,108950.0,108940.0,0.3471673]
[1756577957809,0.56112937,108950.0,108940.0,0.31766001]
[1756577958179,0.56112937,108950.0,108940.0,0.5012473]
[1756577970768,0.21616144,108950.0,108940.0,0.5012473]
[1756577970986,0.56112937,108950.0,108940.0,0.5012473]
[1756577977231,0.56112937,108950.0,108940.0,0.5032773]
[1756577987035,0.56112937,108950.0,108940.0,0.3491973]
[1756577987190,0.56112937,108950.0,108940.0,0.5031573]
[1756577993087,0.56112937,108950.0,108940.0,0.5031173]
[1756577993730,0.56112937,108950.0,108940.0,0.3491973]
[1756577993945,0.56112937,108950.0,108940.0,0.5031173]
[1756577996659,0.56112937,108950.0,108940.0,0.3491973]
[1756577996954,0.56112937,108950.0,108940.0,0.5031173]
[1756578001943,0.56112937,108950.0,108940.0,0.5010873]
[1756578004926,0.21616144,108950.0,108940.0,0.5010873]
[1756578005088,0.56112937,108950.0,108940.0,0.5010873]
[1756578007993,0.56112937,108950.0,108940.0,0.5010473]
[1756578008402,0.56112937,108950.0,108940.0,0.16358001]
[1756578008556,0.9060973,108950.0,108940.0,0.31975485]
[1756578008761,0.9060973,108950.0,108940.0,0.31746001]
[1756578009168,0.99439362,108950.0,108940.0,0.16358001]
[1756578009377,1.01160507,108950.0,108940.0,0.31746001]
[1756578009589,1.01160507,108950.0,108940.0,0.22448]
[1756578009590,1.27473046,108950.0,108940.0,0.22448]
[1756578009848,0.92976253,108950.0,108940.0,0.0706]
[1756578009965,0.92976253,108950.0,108940.0,0.22448]
[1756578009966,1.27473046,108950.0,108940.0,0.22448]
[1756578010845,1.30346953,108950.0,108940.0,0.22448]
[1756578011274,1.39176585,108950.0,108940.0,0.22448]
[1756578013169,1.30346953,108950.0,108940.0,0.22448]
[1756578015106,1.30342201,108950.0,108940.0,0.22448]
[1756578015305,1.29698082,108950.0,108940.0,0.22448]
[1756578016127,1.29698082,108950.0,108940.0,0.0706]
[1756578016335,1.29698082,108950.0,108940.0,0.22444]
[1756578016727,1.38527714,108950.0,108940.0,0.22444]
[1756578017378,1.29698082,108950.0,108940.0,0.22444]
[1756578017779,1.29698082,108950.0,108940.0,0.0706]
[1756578018032,1.29698082,108950.0,108940.0,0.22444]
[1756578023163,0.95201289,108950.0,108940.0,0.22444]
[1756578024247,0.92327382,108950.0,108940.0,0.22444]
[1756578025779,0.92327186,108950.0,108940.0,0.22444]
[1756578026607,1.30588771,108950.0,108940.0,0.15384]
[1756578026807,0.18360414,108930.0,108920.0,0.07107676]
[1756578027007,0.87871,108930.0,108920.0,0.31785677]
[1756578027432,0.906316,108930.0,108920.0,0.31785677]
[1756578028352,0.906316,108930.0,108920.0,0.31985677]
[1756578029339,0.906316,108930.0,108920.0,0.32285677]
[1756578031646,0.92348788,108930.0,108920.0,0.32285677]
[1756578036378,0.92349171,108930.0,108920.0,0.32285677]
[1756578041390,1.26845964,108930.0,108920.0,0.16905677]
[1756578041591,1.26845964,108930.0,108920.0,0.07607676]
[1756578041592,1.6436437,108930.0,108920.0,0.07607676]
[1756578041835,1.73194002,108930.0,108920.0,0.22987676]
[1756578042033,1.75173714,108930.0,108920.0,0.22987676]
[1756578042261,1.75172955,108930.0,108920.0,0.00547676]
[1756578042699,4.49727228,108930.0,108920.0,0.00247676]
[1756578043048,4.49727228,108930.0,108920.0,0.00447676]
[1756578043250,4.49727228,108930.0,108920.0,0.00047676]
[1756578043616,4.49727228,108930.0,108920.0,0.00147676]
[1756578044129,4.49727228,108930.0,108920.0,0.00047676]
[1756578044455,4.49827228,108930.0,108920.0,0.00047676]
[1756578045776,4.49927228,108930.0,108920.0,0.00047676]
[1756578045981,4.34547228,108930.0,108920.0,0.00047676]
[1756578046207,4.49927228,108930.0,108920.0,0.00047676]
[1756578046821,4.32828448,108930.0,108920.0,0.00047676]
[1756578047056,4.49923889,108930.0,108920.0,0.00047676]
[1756578047784,4.49923563,108930.0,108920.0,0.00047676]
[1756578050765,4.34543563,108930.0,108920.0,0.00047676]
[1756578051004,4.49923563,108930.0,108920.0,0.00047676]
[1756578054073,4.49923012,108930.0,108920.0,0.00047676]
[1756578054301,4.47049105,108930.0,108920.0,0.00047676]
[1756578054474,4.31669105,108930.0,108920.0,0.00047676]
[1756578054713,4.47049105,108930.0,108920.0,0.00047676]
[1756578057497,4.45334619,108930.0,108920.0,0.00047676]
[1756578057757,4.47050268,108930.0,108920.0,0.00047676]
[1756578058702,0.523621,108920.0,108910.0,0.14287676]
[1756578058845,4.16204296,108920.0,108910.0,0.14499442]
[1756578059051,1.58725496,108920.0,108910.0,0.14499442]
[1756578059260,1.61486796,108920.0,108910.0,0.14499442]
[1756578060920,1.61486969,108920.0,108910.0,0.00211766]
[1756578061894,1.68467975,108920.0,108910.0,0.00211766]
[1756578062297,1.68467975,108920.0,108910.0,4.766e-05]
[1756578062518,1.68467975,108920.0,108910.0,0.00211766]
[1756578067047,1.68470192,108920.0,108910.0,4.766e-05]
[1756578069546,1.70450042,108920.0,108910.0,4.766e-05]
[1756578070722,1.70451986,108920.0,108910.0,4.766e-05]
[1756578071704,1.68472136,108920.0,108910.0,4.766e-05]
[1756578071929,1.70454053,108920.0,108910.0,4.766e-05]
[1756578075480,1.87053671,108920.0,108910.0,4.766e-05]
[1756578075679,1.92404974,108920.0,108910.0,4.766e-05]
[1756578077589,1.90785643,108920.0,108910.0,4.766e-05]
[1756578077780,1.92505564,108920.0,108910.0,4.766e-05]
[1756578077980,1.77129564,108920.0,108910.0,4.766e-05]
[1756578078192,1.92405564,108920.0,108910.0,4.766e-05]
[1756578078394,1.92501564,108920.0,108910.0,4.766e-05]
[1756578078597,1.92601564,108920.0,108910.0,4.766e-05]
[1756578080709,1.77229564,108920.0,108910.0,4.766e-05]
[1756578080831,1.92601564,108920.0,108910.0,4.766e-05]
[1756578082661,1.77229564,108920.0,108910.0,4.766e-05]
[1756578082919,1.92601564,108920.0,108910.0,4.766e-05]
[1756578083154,1.77229564,108920.0,108910.0,4.766e-05]
[1756578083334,1.92601564,108920.0,108910.0,4.766e-05]
[1756578084492,1.89727657,108920.0,108910.0,4.766e-05]
[1756578086507,1.87250261,108920.0,108910.0,4.766e-05]
[1756578088330,1.87248636,108920.0,108910.0,4.766e-05]
[1756578094945,1.89726032,108920.0,108910.0,4.766e-05]
[1756578098090,1.92599939,108920.0,108910.0,4.766e-05]
[1756578098903,1.91956822,108920.0,108910.0,4.766e-05]
[1756578099111,1.92601521,108920.0,108910.0,4.766e-05]
[1756578109531,1.90237623,108920.0,108910.0,4.766e-05]
[1756578109718,1.92604677,108920.0,108910.0,4.766e-05]
[1756578111218,1.92604656,108920.0,108910.0,4.766e-05]
[1756578112054,1.92604643,108920.0,108910.0,4.766e-05]
[1756578120275,1.90237623,108920.0,108910.0,4.766e-05]
[1756578120482,1.92604222,108920.0,108910.0,4.766e-05]
[1756578120701,0.65537219,108920.0,108910.0,0.00217766]
[1756578120901,1.28665563,108920.0,108910.0,0.00513766]
[1756578121123,1.44033563,108920.0,108910.0,0.00217766]
[1756578121332,1.44033644,108920.0,108910.0,0.00217766]
[1756578121946,1.78530437,108920.0,108910.0,0.00217766]
[1756578122494,1.79034437,108920.0,108910.0,0.00217766]
[1756578122700,1.79033631,108920.0,108910.0,0.00217766]
[1756578126626,1.87863263,108920.0,108910.0,0.00217766]
[1756578127859,1.87863263,108920.0,108910.0,4.766e-05]
[1756578128295,4.49953588,108920.0,108910.0,4.766e-05]
[1756578128512,4.86927777,108920.0,108910.0,4.766e-05]
[1756578128761,5.5841718,108920.0,108910.0,4.766e-05]
[1756578129800,5.58415787,108920.0,108910.0,4.766e-05]
[1756578130709,5.58415781,108920.0,108910.0,4.766e-05]
[1756578131501,5.59234704,108920.0,108910.0,1e-08]
[1756578131678,5.64179183,108920.0,108910.0,1e-08]
[1756578133065,0.52367159,108890.0,108880.0,0.0721143]
[1756578133268,1.06576759,108890.0,108880.0,0.07216184]
[1756578133494,1.06781759,108890.0,108880.0,0.07216184]
[1756578133707,1.07080759,108890.0,108880.0,0.07216184]
[1756578133888,1.41577552,108890.0,108880.0,0.07216184]
[1756578134091,1.41577552,108890.0,108880.0,0.07429184]
[1756578134464,1.42359481,108890.0,108880.0,0.00317754]
[1756578134620,1.27894509,108890.0,108880.0,0.00217754]
[1756578134835,1.42963509,108890.0,108880.0,0.00217754]
[1756578135029,1.43262509,108890.0,108880.0,0.00317754]
[1756578135235,1.52092141,108890.0,108880.0,0.00517754]
[1756578135436,1.52092141,108890.0,108880.0,0.00317754]
[1756578135777,1.52092141,108890.0,108880.0,0.00517754]
[1756578139831,1.52092141,108890.0,108880.0,0.00304754]
[1756578140624,1.52086856,108890.0,108880.0,0.00304754]
[1756578145387,1.52086856,108890.0,108880.0,0.00204754]
[1756578145608,1.52086856,108890.0,108880.0,0.00104754]
[1756578145805,1.52086856,108890.0,108880.0,0.00204754]
[1756578146153,1.52086856,108890.0,108880.0,4.754e-05]
[1756578146357,1.52086856,108890.0,108880.0,0.00204754]
[1756578146561,1.43257224,108890.0,108880.0,0.00204754]
[1756578149252,1.27582224,108890.0,108880.0,0.00407754]
[1756578149459,1.43248224,108890.0,108880.0,0.00204754]
[1756578151068,1.42604188,108890.0,108880.0,0.00204754]
[1756578151305,1.43247395,108890.0,108880.0,0.00204754]
[1756578152070,0.74253809,108890.0,108880.0,0.00204754]
[1756578152296,1.43247395,108890.0,108880.0,0.00204754]
[1756578158345,1.45227306,108890.0,108880.0,0.00204754]
[1756578161588,1.43512091,108890.0,108880.0,0.00204754]
[1756578161797,1.45234456,108890.0,108880.0,0.00204754]
[1756578163344,1.45230456,108890.0,108880.0,0.00204754]
[1756578167663,1.29866456,108890.0,108880.0,0.00204754]
[1756578169663,1.45230456,108890.0,108880.0,0.00204754]
[1756578172517,1.4351004,108890.0,108880.0,0.00204754]
[1756578172676,1.42864884,108890.0,108880.0,0.00204754]
[1756578172882,1.45231367,108890.0,108880.0,0.00204754]
[1756578173287,1.47158984,108890.0,108880.0,0.00204754]
[1756578174681,1.45437905,108890.0,108880.0,0.00204754]
[1756578176894,1.42864884,108890.0,108880.0,0.00204754]
[1756578178099,1.45231355,108890.0,108880.0,0.00204754]
[1756578178518,1.44585943,108890.0,108880.0,0.00204754]
[1756578178727,1.4523134,108890.0,108880.0,0.00204754]
[1756578181358,1.2986734,108890.0,108880.0,0.00204754]
[1756578181621,0.94875547,108890.0,108880.0,0.00418754]
[1756578183403,0.60378754,108890.0,108880.0,0.00418754]
[1756578183657,0.94875547,108890.0,108880.0,0.00418754]
[1756578185494,0.92895636,108890.0,108880.0,0.00418754]
[1756578186699,0.93395636,108890.0,108880.0,0.00418754]
[1756578186856,1.00758313,108890.0,108880.0,0.00204754]
[1756578187064,0.93395636,108890.0,108880.0,0.00204754]
[1756578187973,0.92749459,108890.0,108880.0,0.00204754]
[1756578188164,0.93394563,108890.0,108880.0,0.00204754]
[1756578188600,0.93394493,108890.0,108880.0,0.00204754]
[1756578188824,0.99017424,108890.0,108880.0,0.00204754]
[1756578188962,1.33514217,108890.0,108880.0,0.00204754]
[1756578190937,1.48874217,108890.0,108880.0,0.00204754]
[1756578193804,1.52101266,108890.0,108880.0,0.00204754]
[1756578197532,1.36741266,108890.0,108880.0,0.00204754]
[1756578198407,1.36741266,108890.0,108880.0,1e-08]
[1756578198605,1.36741287,108890.0,108880.0,1e-08]
[1756578199226,0.52867326,108870.0,108860.0,0.22557734]
[1756578199435,0.54587569,108870.0,108860.0,0.32065494]
[1756578199841,0.57349669,108870.0,108860.0,0.31758494]
[1756578200704,0.57349669,108870.0,108860.0,0.32077494]
[1756578201251,0.57349669,108870.0,108860.0,0.32277494]
[1756578204861,0.57349669,108870.0,108860.0,0.31958494]
[1756578205065,0.57349669,108870.0,108860.0,0.16598494]
[1756578205227,0.57884669,108870.0,108860.0,0.31958494]
[1756578205669,0.57349669,108870.0,108860.0,0.31958494]
[1756578206420,0.57349669,108870.0,108860.0,0.3156224]
[1756578207072,0.57349669,108870.0,108860.0,0.31144038]
[1756578207611,0.57349669,108870.0,108860.0,0.15784038]
[1756578207821,0.57349669,108870.0,108860.0,0.31144038]
[1756578208102,0.57349669,108870.0,108860.0,0.30382155]
[1756578208305,0.57349669,108870.0,108860.0,0.30378155]
[1756578208576,0.57349669,108870.0,108860.0,0.29701638]
[1756578209111,0.57349669,108870.0,108860.0,0.29088052]
[1756578209316,0.57349659,108870.0,108860.0,0.29088052]
[1756578209507,0.57349659,108870.0,108860.0,0.29388052]
[1756578216573,0.57884659,108870.0,108860.0,0.29388052]
[1756578216773,0.57884659,108870.0,108860.0,0.14032052]
[1756578216981,0.57884659,108870.0,108860.0,0.29388052]
[1756578219748,0.56164426,108870.0,108860.0,0.29388052]
[1756578219985,0.57885537,108870.0,108860.0,0.29388052]
[1756578230544,0.57885576,108870.0,108860.0,0.29388052]
[1756578236462,0.57885576,108870.0,108860.0,0.29384052]
[1756578236687,0.57885576,108870.0,108860.0,0.29179052]
[1756578240891,0.21667633,108870.0,108860.0,0.47764273]
[1756578241094,0.57885591,108870.0,108860.0,0.47764273]
[1756578241857,0.57885607,108870.0,108860.0,0.47764273]
[1756578250937,0.57885538,108870.0,108860.0,0.47764273]
[1756578251508,0.56164426,108870.0,108860.0,0.47764273]
[1756578251705,0.57885535,108870.0,108860.0,0.47764273]
[1756578252640,0.57885535,108870.0,108860.0,0.29392052]
[1756578254432,0.57885535,108870.0,108860.0,0.47764273]
[1756578258187,0.57885535,108870.0,108860.0,0.29392052]
[1756578258392,0.57885535,108870.0,108860.0,0.29388052]
[1756578259495,0.23388742,108870.0,108860.0,0.29388052]
[1756578260322,0.57885535,108870.0,108860.0,0.29388052]
[1756578261404,0.57885546,108870.0,108860.0,0.29388052]
[1756578263790,0.57885546,108870.0,108860.0,0.29175052]
[1756578270059,0.57885546,108870.0,108860.0,0.47547273]
[1756578282620,0.5788603,108870.0,108860.0,0.47547273]
[1756578282816,0.5735103,108870.0,108860.0,0.47758273]
[1756578285090,0.5756103,108870.0,108860.0,0.32410273]
[1756578285430,0.5787903,108870.0,108860.0,0.47750273]
[1756578285730,0.5787903,108870.0,108860.0,0.32410273]
[1756578285876,0.5787903,108870.0,108860.0,0.47750273]
[1756578289945,0.5735103,108870.0,108860.0,0.47750273]
[1756578290359,0.5755903,108870.0,108860.0,0.47750273]
[1756578290561,0.5785503,108870.0,108860.0,0.47750273]
[1756578291201,0.5785503,108870.0,108860.0,0.47746273]
[1756578292856,0.64078872,108870.0,108860.0,0.29163052]
[1756578293062,0.5785503,108870.0,108860.0,0.29163052]
[1756578293311,0.56133426,108870.0,108860.0,0.29163052]
[1756578293517,0.57854851,108870.0,108860.0,0.29163052]
[1756578296025,0.23358058,108870.0,108860.0,0.29163052]
[1756578296256,0.57854851,108870.0,108860.0,0.13827052]
[1756578296548,0.57854851,108870.0,108860.0,0.29163052]
[1756578301072,0.57854851,108870.0,108860.0,0.13827052]